bitfinex-derivatives/quotes_SOLF0:USTF0_20250404
["timestamp","ask_amount","ask_price","bid_price","bid_amount"]
[1743783003580,1.67743017,119.23,119.16,40.22]
[1743783004496,0.0555777,119.21,119.18,0.05392883]
[1743783005597,0.0555777,119.21,119.19,47.5873483]
[1743783005900,0.0555777,119.21,119.2,40.12]
[1743783006491,45.77464484,119.28,119.2,40.12]
[1743783006887,47.5873483,119.27,119.17,87.7273483]
[1743783007085,47.23446823,119.28,119.17,87.7273483]
[1743783007292,45.77464484,119.28,119.17,87.7273483]
[1743783007797,0.06340308,119.24,119.21,0.0533602]
[1743783007986,0.06340308,119.24,119.21,40.2133602]
[1743783010599,0.06340308,119.24,119.21,0.0533602]
[1743783013096,47.65075138,119.24,119.21,6.02e-05]
[1743783013495,47.5873483,119.22,119.21,6.02e-05]
[1743783013901,103.5546966,119.22,119.1,40.14]
[1743783014105,47.5873483,119.19,119.1,40.14]
[1743783014601,47.5873483,119.17,119.07,47.5873483]
[1743783014797,87.6873483,119.17,119.08,40.1]
[1743783014996,0.06125517,119.13,119.11,0.05430489]
[1743783015414,0.06125517,119.13,119.06,40.06]
[1743783015805,8.6371,119.16,119.07,47.5873483]
[1743783016608,0.05311205,119.13,119.1,0.03195138]
[1743783016811,0.05311205,119.13,119.11,39.98]
[1743783018302,12.7977,119.19,119.11,87.5673483]
[1743783018702,45.77464484,119.21,119.13,47.5873483]
[1743783019014,45.77464484,119.21,119.15,47.5873483]
[1743783019203,45.77464484,119.21,119.16,39.86]
[1743783019404,0.05881188,119.19,119.17,47.6451299]
[1743783019600,37.21154484,119.21,119.17,47.6451299]
[1743783020010,37.21154484,119.26,119.19,47.5873483]
[1743783020308,37.21154484,119.26,119.2,39.86]
[1743783020810,91.54928968,119.27,119.22,0.05513376]
[1743783021014,47.5873483,119.46,119.29,47.5873483]
[1743783021219,47.5873483,119.46,119.35,47.5873483]
[1743783021415,8.9922,119.45,119.36,39.86]
[1743783021713,4.554,119.45,119.39,47.5873483]
[1743783021919,1.4575611,119.51,119.39,95.1746966]
[1743783022214,47.5873483,119.55,119.44,47.5873483]
[1743783022410,0.05299944,119.46,119.45,39.86]
[1743783022612,47.5873483,119.51,119.48,9.133e-05]
[1743783022813,4.4382,119.5,119.48,9.133e-05]
[1743783023012,47.5873483,119.49,119.42,39.86]
[1743783023208,52.1413483,119.49,119.43,8.33368988]
[1743783023408,4.554,119.49,119.44,8.33368988]
[1743783023706,4.554,119.49,119.45,8.33368988]
[1743783023908,0.05433044,119.48,119.45,0.05691089]
[1743783024108,0.05433044,119.48,119.42,39.86]
[1743783024314,0.05433044,119.48,119.43,8.2939524]
[1743783024614,0.05433044,119.48,119.44,8.2939524]
[1743783024804,0.05433044,119.48,119.45,8.2885777]
[1743783025005,0.05433044,119.48,119.42,87.4473483]
[1743783025212,0.05433044,119.48,119.43,83.06609027]
[1743783025411,0.05433044,119.48,119.44,8.34397771]
[1743783025614,0.05433044,119.48,119.44,0.06201319]
[1743783027521,47.5873483,119.46,119.38,39.82]
[1743783027713,47.5873483,119.46,119.39,8.25473953]
[1743783027914,47.5873483,119.46,119.38,39.82]
[1743783027915,47.5873483,119.48,119.38,39.82]
[1743783028116,47.5873483,119.48,119.39,8.25446747]
[1743783028318,47.5873483,119.48,119.4,8.25446747]
[1743783028622,301.68,119.65,119.45,47.5873483]
[1743783028916,47.5873483,119.63,119.51,47.5873483]
[1743783029119,1.45579284,119.63,119.52,48.05160208]
[1743783029319,0.06410634,119.58,119.56,0.02484218]
[1743783029519,8.4272,119.62,119.52,39.82]
[1743783029715,0.05578131,119.58,119.44,301.62]
[1743783029916,87.4073483,119.57,119.48,8.19737019]
[1743783030118,47.5873483,119.55,119.44,341.42]
[1743783030422,8.6119,119.54,119.45,8.19297816]
[1743783030624,87.3873483,119.53,119.43,47.5873483]
[1743783030824,39.8,119.53,119.45,47.5873483]
[1743783031026,0.05649815,119.49,119.46,8.18163489]
[1743783031328,0.05649815,119.49,119.45,87.3873483]
[1743783031521,0.05649815,119.49,119.46,8.16217081]
[1743783031724,0.05649815,119.49,119.45,87.3873483]
[1743783031918,0.05649815,119.49,119.46,8.16096489]
[1743783032224,0.05649815,119.49,119.47,47.5873483]
[1743783032525,0.05649815,119.49,119.48,8.14436164]
[1743783032736,39.8,119.6,119.48,8.14436164]
[1743783033027,8.6301,119.6,119.49,39.8]
[1743783033224,39.8,119.59,119.49,39.8]
[1743783033421,87.3873483,119.59,119.49,39.8]
[1743783033616,39.8,119.59,119.49,39.8]
[1743783033816,0.06085092,119.55,119.53,0.05313023]
[1743783035631,44.3936,119.61,119.53,0.05313023]
[1743783035833,44.3936,119.61,119.53,39.83313023]
[1743783036032,44.3936,119.61,119.53,39.78]
[1743783036626,1.67196121,119.62,119.53,39.78]
[1743783036832,0.06212862,119.58,119.56,0.05690768]
[1743783039734,0.06212862,119.58,119.49,61.13919722]
[1743783039922,87.3473483,119.61,119.5,87.3473483]
[1743783040127,357.67196121,119.62,119.54,47.5873483]
[1743783040128,1.67196121,119.62,119.54,47.5873483]
[1743783040327,1.67196121,119.62,119.55,39.76]
[1743783040732,65.14,119.73,119.6,47.5873483]
[1743783040733,47.5873483,119.73,119.6,47.5873483]
[1743783040922,356.0,119.75,119.67,47.5873483]
[1743783041128,356.0,119.75,119.69,47.5873483]
[1743783041331,0.06109573,119.72,119.69,47.5873483]
[1743783041635,346.1076,119.79,119.72,47.5873483]
[1743783041838,346.1076,119.79,119.78,47.5873483]
[1743783042034,346.1076,119.85,119.78,95.92545612]
[1743783042232,346.1076,119.85,119.82,47.5873483]
[1743783042431,301.24,119.98,119.83,40.92]
[1743783042638,356.0,119.91,119.89,47.5873483]
[1743783042938,356.0,119.91,119.9,48.90989479]
[1743783043229,0.06387437,119.91,119.9,36.76874959]
[1743783043434,0.06387437,119.91,119.9,45.10874959]
[1743783043639,7.437e-05,119.91,119.9,45.10874959]
[1743783043828,250.5482988,120.04,119.9,53.01407828]
[1743783044028,298.1356471,120.03,119.91,47.5873483]
[1743783044228,47.5873483,120.0,119.88,47.5873483]
[1743783044434,9.1486,119.99,119.89,40.98]
[1743783044627,9.1486,119.99,119.89,47.5873483]
[1743783044830,4.6285,119.99,119.92,47.5873483]
[1743783045036,0.05484606,119.95,119.93,0.06294416]
[1743783045437,42.0,120.0,119.91,47.5873483]
[1743783045733,0.05461423,119.95,119.93,0.05667473]
[1743783046041,4.3435,120.02,119.9,43.18]
[1743783046235,47.5873483,120.0,119.88,47.5873483]
[1743783046438,47.5706255,119.96,119.83,43.28]
[1743783046733,47.5873483,119.92,119.83,406.28]
[1743783047040,4.5673,119.91,119.83,406.28]
[1743783047338,4.5673,119.91,119.83,43.28]
[1743783047533,8.8744,119.95,119.83,90.8673483]
[1743783047738,0.06204028,119.88,119.86,0.0525717]
[1743783048039,8.8744,119.95,119.83,43.28]
[1743783048232,47.5873483,119.91,119.8,406.42]
[1743783048432,47.6431258,119.88,119.76,47.5873483]
[1743783048627,47.5873483,119.85,119.76,43.54]
[1743783048847,47.50772708,119.85,119.76,43.54]
[1743783049035,4.1808,119.84,119.74,43.56]
[1743783049228,47.5873483,119.82,119.74,43.56]
[1743783049641,0.06149893,119.79,119.77,0.05392488]
[1743783049940,0.06149893,119.79,119.78,43.46]
[1743783051139,0.06149893,119.79,119.77,0.05392488]
[1743783051347,0.06149893,119.79,119.71,43.38]
[1743783051537,47.5873483,119.77,119.71,43.38]
[1743783051746,47.5873483,119.77,119.68,43.46]
[1743783052448,47.5873483,119.74,119.64,410.5873483]
[1743783052751,47.64672057,119.74,119.65,43.48]
[1743783052947,47.5873483,119.71,119.62,43.44]
[1743783053157,91.0273483,119.71,119.62,43.44]
[1743783053345,47.5873483,119.68,119.62,43.44]
[1743783053547,47.5873483,119.68,119.59,406.42]
[1743783053752,8.9211,119.7,119.59,406.42]
[1743783053953,0.06252269,119.65,119.62,0.02025244]
[1743783054250,0.06252269,119.65,119.63,43.34]
[1743783054753,0.06252269,119.65,119.63,43.36025244]
[1743783055572,8.9211,119.7,119.63,43.36025244]
[1743783055755,56.5084483,119.7,119.63,0.02025244]
[1743783055962,47.5873483,119.68,119.63,0.02025244]
[1743783056264,352.4847483,119.76,119.63,0.02025244]
[1743783056265,47.5873483,119.73,119.63,0.02025244]
[1743783056662,4.2434,119.75,119.64,47.5873483]
[1743783056850,4.2434,119.75,119.65,43.14]
[1743783057163,4.2434,119.75,119.67,0.0624425]
[1743783057552,4.2434,119.75,119.65,43.14]
[1743783057754,47.5873483,119.7,119.57,300.7]
[1743783057955,47.5873483,119.7,119.6,43.08]
[1743783058159,47.5873483,119.68,119.6,43.08]
[1743783058360,0.06264834,119.66,119.64,0.0589589]
[1743783059655,47.5873483,119.65,119.55,42.96]
[1743783059850,47.5873483,119.65,119.53,42.96]
[1743783060556,47.5873483,119.62,119.5,410.5873483]
[1743783060762,47.5873483,119.59,119.49,42.86]
[1743783060962,47.65103587,119.57,119.55,6.895e-05]
[1743783061662,98.83103587,119.57,119.55,6.895e-05]
[1743783062160,90.47103587,119.57,119.55,6.895e-05]
[1743783062362,0.06368757,119.57,119.55,6.895e-05]
[1743783063967,90.2873483,119.65,119.55,42.62006895]
[1743783064374,90.2873483,119.65,119.55,42.62]
[1743783064867,47.5873483,119.59,119.47,47.5873483]
[1743783065168,47.5873483,119.57,119.48,8.09198085]
[1743783065365,90.1673483,119.57,119.52,0.05504923]
[1743783065667,0.05982939,119.54,119.52,0.05504923]
[1743783065859,0.05982939,119.54,119.47,42.5]
[1743783066056,47.5873483,119.53,119.45,42.5]
[1743783066669,47.5873483,119.49,119.42,42.46]
[1743783066872,47.5873483,119.51,119.42,42.46]
[1743783067072,0.05732771,119.47,119.44,0.02681433]
[1743783069678,0.05732771,119.47,119.3,240.04060417]
[1743783069679,47.5873483,119.46,119.35,47.5873483]
[1743783069872,47.5873483,119.46,119.36,50.32503911]
[1743783070073,47.5873483,119.46,119.36,42.22]
[1743783070273,52.1876483,119.46,119.36,42.22]
[1743783070575,51.9387483,119.48,119.37,55.69686801]
[1743783070775,51.9387483,119.48,119.38,8.10951971]
[1743783071071,0.05389039,119.44,119.37,47.5873483]
[1743783071262,0.05389039,119.44,119.38,8.11573318]
[1743783071464,51.9387483,119.48,119.36,42.22]
[1743783071668,0.06148443,119.41,119.37,55.70899536]
[1743783071881,4.3514,119.48,119.39,47.5873483]
[1743783072178,8.8736,119.5,119.41,47.5873483]
[1743783072375,8.8736,119.5,119.43,47.5873483]
[1743783072571,8.8736,119.5,119.44,42.0]
[1743783073073,47.65160587,119.48,119.46,4.859e-05]
[1743783073378,47.5873483,119.48,119.4,41.98]
[1743783073770,8.8736,119.5,119.41,8.11893408]
[1743783073971,8.8736,119.5,119.4,41.98]
[1743783074480,0.0620855,119.47,119.41,8.11464887]
[1743783074675,0.0620855,119.47,119.4,41.98]
[1743783074872,0.0620855,119.47,119.41,8.11653833]
[1743783075181,4.3514,119.55,119.41,8.11653833]
[1743783075182,593.6482988,119.62,119.45,47.5873483]
[1743783075488,607.0136988,119.62,119.46,49.9494913]
[1743783075682,47.5873483,119.55,119.46,41.84]
[1743783075978,41.84,119.58,119.46,41.84]
[1743783076180,41.84,119.58,119.47,8.10836067]
[1743783076380,0.06178227,119.53,119.5,0.05554996]
[1743783076578,0.06178227,119.53,119.51,41.78]
[1743783076981,0.06178227,119.53,119.51,41.83668532]
[1743783077783,0.06178227,119.53,119.51,0.05668532]
[1743783078077,0.06178227,119.53,119.42,404.62]
[1743783078282,47.5873483,119.52,119.42,404.6]
[1743783078778,8.738,119.53,119.42,404.6]
[1743783079081,8.738,119.53,119.43,8.12306573]
[1743783079277,0.06210043,119.49,119.44,8.12306573]
[1743783079485,0.06210043,119.49,119.45,55.71041403]
[1743783079684,0.06210043,119.49,119.46,49.619759]
[1743783079889,0.06210043,119.49,119.46,41.5]
[1743783081986,0.06210043,119.49,119.42,47.5873483]
[1743783082189,0.06210043,119.49,119.43,49.39815982]
[1743783082383,8.738,119.53,119.44,55.70550812]
[1743783082589,0.06017011,119.47,119.45,8.11815982]
[1743783082790,97.5453483,119.53,119.43,41.28]
[1743783082984,0.06079138,119.47,119.4,410.5873483]
[1743783083285,0.06079138,119.47,119.42,47.5873483]
[1743783083488,0.06079138,119.47,119.43,8.11440395]
[1743783083688,0.06079138,119.47,119.44,8.11393049]
[1743783083888,0.06079138,119.47,119.45,41.2]
[1743783084889,0.06079138,119.47,119.42,47.5873483]
[1743783085090,0.06079138,119.47,119.43,41.08]
[1743783085486,0.06079138,119.47,119.4,410.5873483]
[1743783085690,0.06079138,119.47,119.41,41.04]
[1743783086089,40.06567161,119.5,119.41,41.04]
[1743783086389,47.5873483,119.51,119.41,41.04]
[1743783086589,47.5873483,119.51,119.41,88.6273483]
[1743783086982,4.5314,119.52,119.41,88.6273483]
[1743783087386,0.06365978,119.48,119.45,0.05503157]
[1743783088193,0.06365978,119.48,119.36,664.24]
[1743783088393,47.5873483,119.47,119.37,49.01755105]
[1743783088585,4.1911,119.46,119.37,40.88]
[1743783088986,47.5873483,119.45,119.33,47.5873483]
[1743783089181,47.5873483,119.45,119.34,48.97946989]
[1743783089391,0.06169154,119.4,119.37,47.5873483]
[1743783089598,0.00938394,119.4,119.38,48.95946989]
[1743783089887,4.1911,119.46,119.39,55.72681819]
[1743783090082,301.26,119.48,119.4,8.13946989]
[1743783090280,4.1911,119.5,119.41,55.72681819]
[1743783090485,4.1911,119.5,119.42,48.93946989]
[1743783090796,0.05746133,119.47,119.45,47.5873483]
[1743783091094,4.364,119.57,119.46,48.93946989]
[1743783091393,4.364,119.57,119.47,8.13946989]
[1743783091594,0.06337571,119.53,119.5,0.05987385]
[1743783091894,0.06337571,119.53,119.51,8.13946989]
[1743783092195,0.06337571,119.53,119.52,6.989e-05]
[1743783092390,96.83072401,119.53,119.42,40.82]
[1743783092590,47.5873483,119.5,119.42,40.82]
[1743783093495,0.06035633,119.47,119.42,40.82]
[1743783093687,47.5873483,119.44,119.37,40.7]
[1743783093889,47.5873483,119.42,119.34,40.7]
[1743783094197,0.0626545,119.42,119.34,40.7]
[1743783094389,40.7,119.44,119.35,47.5873483]
[1743783094590,0.06161172,119.39,119.35,47.5873483]
[1743783095905,4.364,119.49,119.37,47.5873483]
[1743783095906,44.964,119.49,119.37,47.5873483]
[1743783096098,44.964,119.49,119.39,47.5873483]
[1743783096298,4.364,119.49,119.39,47.5873483]
[1743783096900,0.05618683,119.45,119.43,0.05312178]
[1743783098797,4.3938,119.52,119.43,47.64047008]
[1743783099007,4.4618,119.53,119.45,47.5873483]
[1743783099302,301.36,119.55,119.46,40.4]
[1743783099495,301.36,119.55,119.47,47.5873483]
[1743783099697,44.9483,119.57,119.47,47.5873483]
[1743783099897,0.05922445,119.52,119.47,47.5873483]
[1743783100202,0.05922445,119.52,119.5,0.05941362]
[1743783100499,0.05922445,119.52,119.51,40.38]
[1743783100701,348.9473483,119.6,119.51,40.38]
[1743783101011,47.5873483,119.56,119.48,40.34]
[1743783101301,47.5873483,119.58,119.45,47.5873483]
[1743783101500,40.34,119.59,119.43,4.3178]
[1743783101501,40.34,119.59,119.47,47.5873483]
[1743783101901,0.05739087,119.54,119.52,0.05960986]
[1743783102706,4.2664,119.63,119.52,0.05960986]
[1743783103006,47.5873483,119.6,119.51,40.3]
[1743783103207,47.5873483,119.56,119.47,40.2]
[1743783103395,40.24,119.57,119.47,40.2]
[1743783103596,40.24,119.57,119.47,87.7873483]
[1743783103907,0.05705907,119.53,119.51,0.06326806]
[1743783104406,0.05705907,119.53,119.52,8.26266646]
[1743783104705,0.05705907,119.53,119.52,6.646e-05]
[1743783106408,0.05705907,119.53,119.51,3.452e-05]
[1743783107208,47.5873483,119.52,119.51,3.452e-05]
[1743783107407,4.4069,119.52,119.51,3.452e-05]
[1743783107906,60.3542483,119.52,119.51,3.452e-05]
[1743783108106,51.9942483,119.52,119.51,3.452e-05]
[1743783108312,4.4069,119.52,119.51,3.452e-05]
[1743783108506,0.05705907,119.53,119.51,40.08003452]
[1743783109005,0.05705907,119.53,119.51,3.452e-05]
[1743783109313,47.5873483,119.52,119.51,3.452e-05]
[1743783109807,55.9473483,119.52,119.51,3.452e-05]
[1743783110001,128.7346966,119.52,119.36,231.4623349]
[1743783110202,47.5873483,119.44,119.36,231.4623349]
[1743783110606,40.02,119.45,119.36,231.4623349]
[1743783111010,47.5873483,119.44,119.36,231.4623349]
[1743783111215,0.06229684,119.42,119.39,0.05566992]
[1743783112408,47.64964514,119.42,119.39,0.05566992]
[1743783114410,0.06229684,119.42,119.39,0.05566992]
[1743783115015,9.0599,119.5,119.41,47.5873483]
[1743783115408,47.5873483,119.53,119.41,47.5873483]
[1743783115608,52.1990483,119.53,119.41,47.5873483]
[1743783116010,0.06367929,119.48,119.46,0.05348047]
[1743783116206,47.5873483,119.49,119.46,0.05348047]
[1743783116409,0.05726232,119.49,119.46,0.05348047]
[1743783118206,0.05726232,119.49,119.47,8.05311983]
[1743783118509,0.05726232,119.49,119.48,8.05311983]
[1743783119108,0.05726232,119.49,119.48,8.04875776]
[1743783120216,8.8548,119.57,119.48,8.04875776]
[1743783120420,47.5873483,119.53,119.49,47.88875776]
[1743783120620,47.5873483,119.55,119.5,8.04875776]
[1743783120917,8.8548,119.57,119.49,39.84]
[1743783121223,0.06101445,119.54,119.52,0.06052707]
[1743783121424,47.5873483,119.53,119.52,2.707e-05]
[1743783121921,55.9473483,119.53,119.52,2.707e-05]
[1743783122118,0.06101445,119.54,119.52,2.707e-05]
[1743783123222,0.06101445,119.54,119.53,47.88221059]
[1743783123817,343.00181963,119.69,119.53,103.82955889]
[1743783124015,343.00181963,119.69,119.55,47.5873483]
[1743783124016,47.5873483,119.67,119.55,47.5873483]
[1743783124218,36.3411933,119.68,119.56,8.04221059]
[1743783124422,47.5873483,119.61,119.57,8.04221059]
[1743783124623,47.5873483,119.61,119.58,8.04221059]
[1743783124826,87.6073483,119.63,119.53,40.02]
[1743783125021,47.64284384,119.61,119.58,0.06090284]
[1743783125227,0.05549554,119.61,119.53,40.02]
[1743783125416,4.2859,119.6,119.54,8.03159397]
[1743783125611,4.2859,119.6,119.55,8.03159397]
[1743783125816,4.2859,119.6,119.53,40.02]
[1743783126016,4.2859,119.6,119.54,8.03713109]
[1743783126220,51.8732483,119.6,119.55,8.03713109]
[1743783126416,0.060399,119.58,119.56,0.06027817]
[1743783126820,47.6477473,119.58,119.52,39.92]
[1743783127117,47.5873483,119.56,119.53,8.03952651]
[1743783127318,47.5873483,119.56,119.49,39.92]
[1743783127519,4.2859,119.6,119.5,8.03427049]
[1743783127730,4.2859,119.6,119.51,8.03427049]
[1743783128023,0.06296836,119.56,119.54,0.05359021]
[1743783128223,0.06296836,119.56,119.55,8.03427049]
[1743783128425,0.06296836,119.56,119.54,0.05359021]
[1743783129223,47.65031666,119.56,119.54,0.05359021]
[1743783129420,47.65031666,119.56,119.49,39.82]
[1743783129619,47.5873483,119.56,119.5,8.04184737]
[1743783129824,4.4809,119.55,119.51,8.04184737]
[1743783130017,4.4809,119.55,119.49,39.82]
[1743783130218,4.4809,119.55,119.5,8.04215062]
[1743783130530,0.05618115,119.54,119.51,8.10348726]
[1743783130714,47.64352945,119.54,119.51,0.06141803]
[1743783130919,47.64352945,119.54,119.43,4.1572]
[1743783130920,47.5873483,119.52,119.47,39.82]
[1743783131121,47.5873483,119.5,119.44,39.82]
[1743783131322,47.5873483,119.5,119.45,8.04514154]
[1743783131521,47.5873483,119.5,119.46,8.04514154]
[1743783131723,47.5873483,119.48,119.43,39.82]
[1743783131923,47.5873483,119.46,119.44,8.04443484]
[1743783132124,47.5873483,119.46,119.44,0.05683191]
[1743783132524,0.06443082,119.47,119.44,0.05683191]
[1743783132730,47.5873483,119.46,119.39,39.82]
[1743783132932,51.8227483,119.46,119.4,8.0464807]
[1743783133131,51.8227483,119.46,119.41,8.04657436]
[1743783133331,51.8227483,119.46,119.34,51.7445483]
[1743783133628,47.5873483,119.44,119.35,47.86557598]
[1743783133825,0.06291402,119.41,119.36,8.04557598]
[1743783134030,0.06291402,119.41,119.35,39.82]
[1743783134332,0.06291402,119.41,119.36,8.04801991]
[1743783134333,4.4515,119.41,119.36,8.04801991]
[1743783134530,0.05909226,119.39,119.35,39.82]
[1743783134726,0.05909226,119.39,119.36,8.04512488]
[1743783134935,0.05909226,119.39,119.34,39.82]
[1743783135234,0.05909226,119.39,119.35,8.03989606]
[1743783135424,47.5873483,119.4,119.34,39.82]
[1743783135631,0.0586954,119.38,119.34,39.82]
[1743783136237,0.0586954,119.38,119.29,367.1643]
[1743783136434,0.0586954,119.38,119.3,47.85410285]
[1743783136733,0.0533971,119.35,119.31,8.03410285]
[1743783136936,47.5873483,119.44,119.33,47.5873483]
[1743783137130,47.5873483,119.42,119.34,47.85410285]
[1743783137437,47.5873483,119.38,119.31,39.82]
[1743783137638,47.5873483,119.38,119.32,8.03007987]
[1743783137839,47.5873483,119.38,119.31,39.82]
[1743783138140,0.05999955,119.36,119.34,0.05593721]
[1743783140534,275.7482988,119.33,119.16,214.4623349]
[1743783140742,47.5873483,119.19,119.16,214.4623349]
[1743783141040,41.26,119.18,119.11,289.3279186]
[1743783141343,47.5873483,119.19,119.11,289.3279186]
[1743783141540,41.24,119.17,119.11,289.3279186]
[1743783141742,0.05343995,119.16,119.11,289.3279186]
[1743783142040,47.64078825,119.16,119.11,289.3279186]
[1743783144039,0.05343995,119.16,119.11,289.3279186]
[1743783144735,0.05343995,119.16,119.1,41.08]
[1743783145240,47.64078825,119.16,119.1,41.08]
[1743783145440,47.5873483,119.12,119.07,363.0]
[1743783145738,47.5873483,119.12,119.04,40.98]
[1743783145943,0.05748636,119.11,119.04,40.98]
[1743783148237,0.05748636,119.11,119.04,88.5673483]
[1743783149442,0.05748636,119.11,119.04,451.5673483]
[1743783152043,0.05748636,119.11,119.04,455.7607483]
[1743783154048,0.05748636,119.11,119.06,47.5873483]
[1743783154356,0.05748636,119.11,119.05,51.9722483]
[1743783154737,0.05748636,119.11,119.04,367.1934]
[1743783154941,0.05748636,119.11,119.05,40.46]
[1743783155242,0.05748636,119.11,119.04,367.1934]
[1743783155443,0.05748636,119.11,119.05,40.44]
[1743783157855,0.05748636,119.11,119.04,363.0]
[1743783158151,0.05748636,119.11,119.05,46.16]
[1743783158346,0.05748636,119.11,119.06,47.5873483]
[1743783158547,0.05748636,119.11,119.05,46.16]
[1743783159659,0.05748636,119.11,119.04,363.0]
[1743783159844,0.05748636,119.11,119.03,301.7]
[1743783160042,47.5873483,119.1,119.04,46.12]
[1743783160248,47.5873483,119.08,118.99,4.1945]
[1743783160548,47.64269956,119.08,119.0,46.12]
[1743783160747,47.5873483,119.1,118.99,4.1945]
[1743783160952,0.05680588,119.05,119.0,93.6673483]
[1743783162457,4.3712,119.12,119.04,47.5873483]
[1743783162653,8.7534,119.13,119.05,46.4]
[1743783163056,47.5873483,119.16,119.05,46.4]
[1743783163254,52.0276483,119.16,119.05,46.4]
[1743783163550,47.5873483,119.14,119.05,46.4]
[1743783163757,0.05446277,119.12,119.09,0.05680588]
[1743783165759,47.64181107,119.12,119.09,0.05680588]
[1743783166263,0.05446277,119.12,119.09,0.05680588]
[1743783180274,97.6073483,119.11,119.01,38.88382393]
[1743783180469,47.5873483,119.08,119.01,38.88382393]
[1743783181465,0.06237002,119.06,119.01,38.88382393]
[1743783181972,0.06237002,119.06,119.0,50.06]
[1743783184171,0.06237002,119.06,118.99,49.94]
[1743783185280,0.06237002,119.06,118.99,460.5273483]
[1743783185974,0.06237002,119.06,119.01,47.5873483]
[1743783186881,4.4833,119.11,119.01,47.5873483]
[1743783187076,97.2673483,119.15,119.03,47.5873483]
[1743783187278,47.5873483,119.15,119.04,49.68]
[1743783187773,29.22486818,119.19,119.07,29.22486818]
[1743783187979,29.22486818,119.19,119.08,49.6]
[1743783188178,0.05512355,119.14,119.12,0.05348362]
[1743783188485,29.22486818,119.19,119.12,49.53348362]
[1743783188683,0.06002777,119.14,119.12,49.53348362]
[1743783188870,29.22486818,119.19,119.12,49.53348362]
[1743783189076,0.05671678,119.14,119.12,49.53348362]
[1743783189378,13.4117,119.2,119.12,49.53348362]
[1743783189580,29.22486818,119.22,119.12,49.53348362]
[1743783189884,47.47105746,119.26,119.14,47.47105746]
[1743783190082,47.47105746,119.24,119.12,96.95105746]
[1743783190681,56.04395746,119.28,119.17,0.06373779]
[1743783190682,0.05575428,119.19,119.17,0.06373779]
[1743783190879,56.04395746,119.28,119.18,49.32]
[1743783191085,8.5729,119.28,119.18,96.79105746]
[1743783191382,4.3012,119.29,119.2,47.47105746]
[1743783191576,4.3012,119.29,119.18,459.79105746]
[1743783191776,47.47105746,119.28,119.18,49.32]
[1743783191981,0.06426058,119.25,119.22,0.05804801]
[1743783192277,0.06426058,119.25,119.22,49.21804801]
[1743783192479,56.59625746,119.32,119.22,49.21804801]
[1743783192480,9.1252,119.32,119.22,96.68910547]
[1743783192685,9.1252,119.32,119.22,96.63105746]
[1743783193377,56.59625746,119.32,119.22,49.16]
[1743783193688,0.05289769,119.28,119.26,0.0562422]
[1743783193986,4.5541,119.34,119.27,48.92]
[1743783194774,4.5541,119.34,119.28,48.82]
[1743783195085,4.5541,119.34,119.28,48.8]
[1743783195278,0.05523857,119.32,119.3,0.05596319]
[1743783195585,4.2753,119.37,119.3,0.05596319]
[1743783195789,0.05718214,119.32,119.3,0.05596319]
[1743783195988,4.2753,119.37,119.3,0.05596319]
[1743783196186,0.05872726,119.32,119.3,0.05596319]
[1743783196378,51.74635746,119.37,119.3,0.05596319]
[1743783196579,0.05318182,119.32,119.3,0.05596319]
[1743783196776,51.74635746,119.37,119.3,0.05596319]
[1743783197280,0.05285509,119.35,119.3,0.05596319]
[1743783202684,0.05285509,119.35,119.3,47.52702065]
[1743783202888,0.05285509,119.35,119.3,0.05596319]
[1743783205988,284.97431085,119.64,119.35,363.0]
[1743783206189,47.47105746,119.58,119.43,47.47105746]
[1743783206378,47.47105746,119.55,119.43,410.47105746]
[1743783206588,8.6607,119.54,119.44,48.3]
[1743783206783,47.47105746,119.52,119.43,48.22]
[1743783207080,47.47105746,119.49,119.43,48.22]
[1743783207282,48.22,119.55,119.43,48.22]
[1743783207283,47.47105746,119.61,119.46,94.99737201]
[1743783207483,4.5741,119.62,119.5,47.47105746]
[1743783207685,4.5741,119.62,119.53,47.47105746]
[1743783207991,11.32091149,119.63,119.59,47.47105746]
[1743783208184,2.95211248,119.63,119.62,47.47105746]
[1743783208386,2.95211248,119.63,119.62,95.89105746]
[1743783208590,2.95211248,119.63,119.61,48.48094327]
[1743783208888,2.95211248,119.63,119.61,48.42]
[1743783209085,3.0068768,119.63,119.61,0.05443872]
[1743783209591,3.0068768,119.63,119.53,907.0]
[1743783209890,34.42601205,119.64,119.61,47.47105746]
[1743783210092,137.64895724,119.66,119.62,48.2]
[1743783210293,137.64895724,119.66,119.64,47.47105746]